bitfinex-derivatives/quotes_ETHF0:USTF0_20250727
["timestamp","ask_amount","ask_price","bid_price","bid_amount"]
[1753603340835,0.83526,3772.6,3772.5,23.22905]
[1753603341033,1.30036,3772.6,3772.5,25.0812678]
[1753603341442,1.59496,3772.6,3772.5,25.6112278]
[1753603341941,1.065,3772.6,3772.5,25.6112278]
[1753603342240,1.59495,3772.6,3772.5,25.6112278]
[1753603343342,1.59495,3772.6,3772.5,25.0812678]
[1753603343642,1.80145,3772.6,3772.5,25.0812678]
[1753603343843,1.80145,3772.6,3772.5,25.6112278]
[1753603344541,1.80145,3772.6,3772.5,25.0812678]
[1753603344940,2.12915,3772.6,3772.5,25.0812678]
[1753603346945,2.35135,3772.6,3772.5,25.0812678]
[1753603348746,2.35559198,3772.6,3772.5,25.0812678]
[1753603349748,2.35559198,3772.6,3772.5,24.7823678]
[1753603350947,2.35559198,3772.6,3772.5,24.7173678]
[1753603351146,2.35559198,3772.6,3772.5,24.7113678]
[1753603351647,2.35559198,3772.6,3772.5,25.0077678]
[1753603351841,2.35559198,3772.6,3772.5,24.3393678]
[1753603352047,2.35559198,3772.6,3772.5,22.5693]
[1753603352344,2.35559198,3772.6,3772.5,22.5653]
[1753603357950,2.35559198,3772.6,3772.5,24.9474678]
[1753603358849,2.35559198,3772.6,3772.5,22.5653]
[1753603359347,2.35559198,3772.6,3772.5,24.9474678]
[1753603359748,2.35559198,3772.6,3772.5,22.5653]
[1753603359948,2.35559198,3772.6,3772.5,24.9474678]
[1753603361844,0.00424198,3772.6,3772.5,25.4774278]
[1753603362050,0.00424198,3772.6,3772.5,23.09526]
[1753603364256,0.00424198,3772.6,3772.5,26.43029492]
[1753603364650,0.00424198,3772.6,3772.5,23.09526]
[1753603365146,1.78377,3773.2,3773.1,1.0213]
[1753603365453,2.35107,3773.2,3773.1,22.5053]
[1753603365653,2.35107,3773.2,3773.1,22.2089]
[1753603366351,1.88338,3773.1,3773.0,3.2078]
[1753603366556,2.35108,3773.1,3773.0,27.08884311]
[1753603366757,2.35108,3773.1,3773.0,6.31474311]
[1753603369059,2.35108,3773.1,3773.0,3.9327]
[1753603369268,2.35108,3773.1,3773.0,0.7249]
[1753603371455,1.8212,3773.4,3773.3,0.7056]
[1753603371761,2.35103,3773.4,3773.3,3.40334311]
[1753603372358,2.35103,3773.4,3773.3,1.0213]
[1753603379168,2.35103,3773.4,3773.3,0.7249]
[1753603379562,2.35103,3773.4,3773.3,0.2202]
[1753603379763,0.52986,3773.2,3773.1,0.6331]
[1753603380072,2.32016,3773.2,3773.1,0.5447]
[1753603380266,2.32016,3773.2,3773.1,0.7602]
[1753603380464,2.32016,3773.2,3773.1,1.0534]
[1753603380658,2.32016,3773.2,3773.1,3.43544311]
[1753603387268,2.32016,3773.2,3773.1,2.72194311]
[1753603388669,2.32016,3773.2,3773.1,0.3399]
[1753603389171,2.32016,3773.2,3773.1,2.93744311]
[1753603389768,2.32016,3773.2,3773.1,3.14224311]
[1753603391171,2.32016,3773.2,3773.1,0.7602]
[1753603391372,2.32016,3773.2,3773.1,3.43444919]
[1753603392266,2.32016,3773.2,3773.1,1.0534]
[1753603400174,2.32016,3773.2,3773.1,0.7602]
[1753603402177,2.32016,3773.2,3773.1,0.2155]
[1753603402376,2.32021,3772.9,3772.8,3.67493492]
[1753603403681,2.32021,3772.9,3772.8,0.3399]
[1753603404181,2.32021,3772.9,3772.8,0.7602]
[1753603405782,2.32021,3772.9,3772.8,3.14305539]
[1753603407386,2.32021,3772.9,3772.8,3.43625539]
[1753603407589,2.32021,3772.9,3772.8,3.14305539]
[1753603408690,2.32021,3772.9,3772.8,0.7602]
[1753603409687,2.32021,3772.9,3772.8,0.2155]
[1753603409889,2.29043,3772.7,3772.6,1.0499]
[1753603410190,2.29043,3772.7,3772.6,0.7469]
[1753603413400,2.29043,3772.7,3772.6,1.0499]
[1753603414394,2.29043,3772.7,3772.6,0.7469]
[1753603414895,2.29043,3772.7,3772.6,0.2243]
[1753603417397,2.29046,3772.5,3772.4,0.5226]
[1753603417601,2.29046,3772.5,3772.4,1.0499]
[1753603421203,2.29046,3772.5,3772.4,4.2577]
[1753603426808,2.29046,3772.5,3772.4,1.0499]
[1753603427308,0.52996,3772.5,3772.4,1.0499]
[1753603428303,0.52996,3772.5,3772.4,3.43275539]
[1753603428501,0.52996,3772.5,3772.4,1.0499]
[1753603428704,0.81606,3772.5,3772.4,1.0499]
[1753603428907,1.23856,3772.5,3772.4,1.0499]
[1753603429107,1.23856,3772.5,3772.4,3.43275539]
[1753603431412,1.52496,3772.5,3772.4,3.43275539]
[1753603432410,1.52496,3772.5,3772.4,3.43171546]
[1753603433110,1.52496,3772.5,3772.4,1.0499]
[1753603433504,1.73336,3772.5,3772.4,1.0499]
[1753603433711,2.06626,3772.5,3772.4,1.0499]
[1753603434211,2.29046,3772.5,3772.4,1.0499]
[1753603443117,2.29046,3772.5,3772.4,0.7469]
[1753603444420,2.29046,3772.5,3772.4,1.06]
[1753603446617,1.7605,3772.5,3772.3,3.2078]
[1753603446923,2.30008,3772.4,3772.3,1.0329]
[1753603448017,2.3001,3772.2,3772.1,3.33503492]
[1753603448220,1.32491,3772.5,3771.9,3.5106]
[1753603448221,2.30013,3772.0,3771.9,7.26263492]
[1753603448519,1.52641298,3772.0,3771.9,8.33883492]
[1753603449323,1.52641298,3772.0,3771.9,5.0038]
[1753603450418,1.66801298,3772.0,3771.9,5.0038]
[1753603451516,1.66801298,3772.0,3771.9,1.796]
[1753603451919,1.66801298,3772.0,3771.7,3.33503492]
[1753603451920,1.23746,3771.8,3771.7,3.33503492]
[1753603452130,2.11886,3771.8,3771.7,2.99979141]
[1753603453224,2.11886,3771.8,3771.7,0.6159]
[1753603455524,2.11886,3771.8,3771.7,0.3131]
[1753603456125,2.11886,3771.8,3771.7,0.6159]
[1753603457431,2.11886,3771.8,3771.7,1.4159]
[1753603458130,2.11886,3771.8,3771.7,1.6203]
[1753603459935,2.11886,3771.8,3771.7,2.2858]
[1753603460333,2.11886,3771.8,3771.7,1.8329]
[1753603462337,2.11886,3771.8,3771.7,1.4159]
[1753603462634,2.11886,3771.8,3771.7,0.6159]
[1753603463638,2.11886,3771.8,3771.7,0.3131]
[1753603463846,1.23749,3771.6,3771.5,1.4159]
[1753603464140,2.13779,3771.6,3771.5,1.4159]
[1753603464639,2.13779,3771.6,3771.5,1.6203]
[1753603464834,2.13779,3771.6,3771.5,1.8329]
[1753603465441,2.13779,3771.6,3771.5,2.2858]
[1753603468640,2.13779,3771.6,3771.5,1.4858]
[1753603470642,2.13779,3771.6,3771.5,1.7851]
[1753603483952,1.84489,3771.6,3771.5,1.7851]
[1753603484946,1.47189,3771.6,3771.5,1.7851]
[1753603485148,1.28339,3771.6,3771.5,1.7851]
[1753603486051,1.47219,3771.6,3771.5,1.7851]
[1753603486853,1.84959,3771.6,3771.5,1.7851]
[1753603491555,1.47219,3771.6,3771.5,1.7851]
[1753603491756,1.62999,3771.6,3771.5,1.7851]
[1753603495955,2.13549,3771.6,3771.5,1.7851]
[1753603496554,23.50549,3771.6,3771.5,1.7851]
[1753603497458,2.13549,3771.6,3771.5,1.7851]
[1753603501160,2.13549,3771.6,3771.5,1.4858]
[1753603501360,2.13549,3771.6,3771.5,1.0329]
[1753603502059,2.13549,3771.6,3771.5,1.4732]
[1753603503361,2.13549,3771.6,3771.5,1.7681]
[1753603503561,2.13549,3771.6,3771.5,1.4732]
[1753603504163,2.13549,3771.6,3771.5,1.7681]
[1753603504461,1.84959,3771.6,3771.5,1.7681]
[1753603504761,2.15099,3771.6,3771.5,1.7681]
[1753603505065,1.84959,3771.6,3771.5,1.7681]
[1753603509360,2.15099,3771.6,3771.5,1.4732]
[1753603509759,2.15099,3771.6,3771.5,1.0329]
[1753603509964,2.15099,3771.6,3771.5,0.8203]
[1753603510158,2.15099,3771.6,3771.5,0.3131]
[1753603510665,2.15982,3771.4,3771.3,0.6206]
[1753603510964,26.72562,3771.4,3771.3,0.6206]
[1753603512261,26.72562,3771.4,3771.3,1.0216]
[1753603512565,26.72562,3771.4,3771.3,1.4619]
[1753603512860,26.72562,3771.4,3771.3,1.7568]
[1753603513465,26.42422,3771.4,3771.3,1.7568]
[1753603514869,26.72562,3771.4,3771.3,1.7568]
[1753603516370,23.51782,3771.4,3771.3,1.7568]
[1753603516566,26.72562,3771.4,3771.3,1.7568]
[1753603517369,1.85847,3771.0,3770.9,3.70039141]
[1753603517678,1.85847,3771.0,3770.9,4.14069141]
[1753603517679,23.21147,3771.0,3770.9,4.14069141]
[1753603517966,23.21147,3771.0,3770.9,1.7568]
[1753603518265,23.51287,3771.0,3770.9,1.7568]
[1753603518771,26.72067,3771.0,3770.9,1.0216]
[1753603519270,26.72067,3771.0,3770.9,1.4619]
[1753603519576,2.15989,3770.9,3770.8,1.4206]
[1753603519765,2.15989,3770.9,3770.8,0.8]
[1753603519965,2.15989,3770.9,3770.8,1.6193]
[1753603520961,42.95989,3770.9,3770.8,1.6193]
[1753603522472,42.95989,3770.9,3770.8,1.8216]
[1753603522768,42.95989,3770.9,3770.8,2.2619]
[1753603523969,42.95989,3770.9,3770.8,2.5568]
[1753603524871,42.95989,3770.9,3770.8,2.2619]
[1753603525070,42.95989,3770.9,3770.8,1.8216]
[1753603525872,42.95989,3770.9,3770.8,2.2619]
[1753603528377,42.65849,3770.9,3770.8,2.5568]
[1753603528971,63.85739,3770.9,3770.8,2.5568]
[1753603529475,63.99199,3770.9,3770.8,2.5568]
[1753603533875,23.19199,3770.9,3770.8,2.5568]
[1753603534284,63.99199,3770.9,3770.8,2.5568]
[1753603535077,64.29199,3770.9,3770.8,2.5568]
[1753603536679,64.29199,3770.9,3770.8,0.8]
[1753603536881,1.8346,3770.1,3770.0,1.7226]
[1753603537084,23.1726,3770.1,3770.0,1.7226]
[1753603537276,23.4726,3770.1,3770.0,1.7226]
[1753603538679,23.1726,3770.1,3770.0,1.7226]
[1753603539277,23.4726,3770.1,3770.0,1.7226]
[1753603540080,23.1726,3770.1,3770.0,1.7226]
[1753603540475,22.8239,3770.1,3770.0,1.7226]
[1753603542182,1.4859,3770.1,3770.0,1.7226]
[1753603542484,22.8209,3770.1,3770.0,1.7226]
[1753603542783,22.9555,3770.1,3770.0,1.7226]
[1753603544185,1.6205,3770.1,3770.0,1.7226]
[1753603544384,22.9555,3770.1,3770.0,1.7226]
[1753603544585,22.8209,3770.1,3770.0,1.7226]
[1753603545186,22.9555,3770.1,3770.0,1.7226]
[1753603545980,22.8209,3770.1,3770.0,1.7226]
[1753603546990,22.9555,3770.1,3770.0,1.7226]
[1753603547288,23.4696,3770.1,3770.0,1.7226]
[1753603548290,23.4646,3770.1,3770.0,1.7226]
[1753603549091,23.4646,3770.1,3770.0,1.4201]
[1753603550294,23.4646,3770.1,3770.0,0.9933]
[1753603550789,23.4646,3770.1,3770.0,0.59]
[1753603553391,23.4646,3770.1,3770.0,0.2873]
[1753603555687,23.4646,3770.1,3770.0,0.59]
[1753603556389,23.4646,3770.1,3770.0,0.9933]
[1753603556588,23.4646,3770.1,3770.0,1.4201]
[1753603556891,23.4646,3770.1,3770.0,1.7226]
[1753603557586,23.1646,3770.1,3770.0,1.7226]
[1753603558394,23.456,3770.1,3770.0,1.7226]
[1753603561194,23.1646,3770.1,3770.0,1.7226]
[1753603562796,23.456,3770.1,3770.0,1.7226]
[1753603567298,23.456,3770.1,3770.0,1.4201]
[1753603569796,23.1646,3770.1,3770.0,1.7329]
[1753603572198,23.456,3770.1,3770.0,1.7329]
[1753603575297,2.126,3770.1,3770.0,1.7329]
[1753603575499,23.434,3770.1,3770.0,1.7329]
[1753603584402,23.7003478,3770.1,3770.0,1.4201]
[1753603587902,23.7002769,3770.1,3770.0,1.4201]
[1753603588302,23.434,3770.1,3770.0,1.4201]
[1753603589501,23.434,3770.1,3770.0,0.83405]
[1753603589702,1.04973,3769.9,3769.8,0.25639428]
[1753603589902,26.79993,3769.9,3769.8,0.66239428]
[1753603591209,26.79993,3769.9,3769.8,0.60229428]
[1753603591807,26.79993,3769.9,3769.8,1.28339428]
[1753603592203,26.79993,3769.9,3769.8,0.49079428]
[1753603592512,1.98526,3769.7,3769.6,0.0376]
[1753603592702,23.58916,3769.7,3769.6,0.5364]
[1753603592899,23.58916,3769.7,3769.6,0.7381]
[1753603596517,23.58916,3769.7,3769.6,1.027]
[1753603597004,23.58916,3769.7,3769.6,0.7381]
[1753603597209,2.29718,3769.5,3769.4,0.0377]
[1753603597413,26.79298,3769.5,3769.4,0.0377]
[1753603597611,2.29724,3769.1,3769.0,0.504]
[1753603597916,26.79304,3769.1,3769.0,0.504]
[1753603599112,67.59304,3769.1,3769.0,0.686]
[1753603602007,0.53054,3768.4,3768.3,4.1552]
[1753603603214,0.53054,3768.4,3768.3,0.9474]
[1753603604810,1.77794,3768.4,3768.3,0.9474]
[1753603605309,1.15204,3768.4,3768.3,0.9474]
[1753603605510,0.84014,3768.4,3768.3,0.9474]
[1753603607016,1.15204,3768.4,3768.3,0.9474]
[1753603608018,1.58864,3768.4,3768.3,0.9474]
[1753603611119,0.84014,3768.4,3768.3,0.9474]
[1753603611713,1.15204,3768.4,3768.3,0.9474]
[1753603612320,1.58864,3768.4,3768.3,0.9474]
[1753603613119,1.77794,3768.4,3768.3,0.9474]
[1753603613320,23.05894,3768.4,3768.3,0.9474]
[1753603613821,23.36824,3768.4,3768.3,0.9474]
[1753603614017,23.57834,3768.4,3768.3,0.9474]
[1753603615415,2.29734,3768.4,3768.3,0.9474]
[1753603615620,23.57434,3768.4,3768.3,0.9474]
[1753603615820,21.80754,3768.4,3768.3,0.9474]
[1753603616221,22.42904,3768.4,3768.3,0.9474]
[1753603616423,23.57434,3768.4,3768.3,0.9474]
[1753603626922,2.29734,3768.4,3768.3,0.9474]
[1753603627127,23.56534,3768.4,3768.3,0.9474]
[1753603627327,23.56534,3768.4,3768.3,0.686]
[1753603640143,2.29734,3768.4,3768.3,0.686]
[1753603640343,23.55334,3768.4,3768.3,0.686]
[1753603643146,2.29734,3768.4,3768.3,0.686]
[1753603643345,23.55034,3768.4,3768.3,0.686]
[1753603643745,2.29734,3768.4,3768.3,0.686]
[1753603643946,23.55034,3768.4,3768.3,0.686]
[1753603648048,2.29734,3768.4,3768.3,0.686]
[1753603648247,23.54634,3768.4,3768.3,0.9477]
[1753603649646,23.54634,3768.4,3768.3,0.686]
[1753603651446,23.54434,3768.4,3768.3,0.686]
[1753603652149,2.29734,3768.4,3768.3,0.686]
[1753603652346,23.54234,3768.4,3768.3,0.686]
[1753603653749,23.54234,3768.4,3768.3,0.9477]
[1753603654148,23.54234,3768.4,3768.3,0.686]
[1753603655851,23.54234,3768.4,3768.3,0.6257]
[1753603658451,2.29734,3768.4,3768.3,0.6257]
[1753603658653,23.53834,3768.4,3768.3,0.6257]
[1753603659656,23.53400234,3768.4,3768.3,0.6257]
[1753603659953,23.53400234,3768.4,3768.3,0.2394]
[1753603660253,2.29300234,3768.4,3768.3,0.2394]
[1753603660652,23.53100234,3768.4,3768.3,0.2394]
[1753603662152,2.30665,3768.3,3768.2,0.05637626]
[1753603662951,2.30665,3768.3,3768.2,0.01857626]
[1753603663655,2.30665,3768.3,3768.2,0.05637626]
[1753603663855,2.30665,3768.3,3768.2,0.25437626]
[1753603664851,2.30665,3768.3,3768.2,0.01857626]
[1753603665153,5.51445,3768.3,3768.2,0.01857626]
[1753603666153,5.51445,3768.3,3767.9,2.42169141]
[1753603666154,1.24499,3768.0,3767.9,2.38389141]
[1753603666355,2.30671,3767.9,3767.8,2.58028989]
[1753603666857,2.30671,3767.9,3767.8,2.63668989]
[1753603667055,2.30671,3767.9,3767.8,3.20608989]
[1753603668555,2.30671,3767.9,3767.8,2.83468989]
[1753603670358,2.30671,3767.9,3767.8,2.58028989]
[1753603670957,2.30671,3767.9,3767.8,2.63668989]
[1753603671156,2.30671,3767.9,3767.8,0.25279848]
[1753603671561,2.30671,3767.9,3767.8,0.61689848]
[1753603672452,2.30671,3767.9,3767.8,0.45079848]
[1753603674457,5.51451,3767.9,3767.8,0.45079848]
[1753603674858,5.51451,3767.9,3767.8,0.19639848]
[1753603676566,5.51451,3767.9,3767.8,0.25279848]
[1753603677868,5.51451,3767.9,3767.8,0.19639848]
[1753603678973,5.51451,3767.9,3767.8,0.25319848]
[1753603680770,5.51451,3767.9,3767.8,0.60219848]
[1753603680969,5.51451,3767.9,3767.8,0.44179848]
[1753603681368,5.51451,3767.9,3767.8,0.19639848]
[1753603681562,0.5043,3767.2,3767.1,0.3363]
[1753603681768,0.8168,3767.2,3767.1,0.9584]
[1753603681966,3.6337,3767.4,3767.1,0.9584]
[1753603682172,0.3021,3767.6,3767.5,0.4794]
[1753603682364,22.05672,3767.8,3767.7,0.1886]
[1753603682567,0.53069,3767.3,3767.2,3.4696]
[1753603682866,2.27769,3767.3,3767.2,0.9584]
[1753603683062,2.27769,3767.3,3767.2,0.6966]
[1753603683461,2.27772,3767.1,3767.0,0.6057]
[1753603683676,2.27772,3767.1,3767.0,0.6966]
[1753603684068,1.747,3767.1,3767.0,0.9584]
[1753603684268,1.747,3767.1,3766.8,3.34229141]
[1753603684269,2.27775,3766.9,3766.8,3.34229141]
[1753603684471,2.27775,3766.9,3766.8,0.9584]
[1753603684967,0.3165,3767.6,3767.2,0.9016]
[1753603685172,0.3021,3767.6,3767.5,0.9584]
[1753603685573,0.3165,3767.8,3767.5,0.9584]
[1753603685772,0.6186,3767.9,3767.8,0.4794]
[1753603686074,1.0445,3767.9,3767.8,0.9584]
[1753603686275,1.2432,3767.9,3767.8,0.9584]
[1753603686471,2.07941,3767.9,3767.8,0.9584]
[1753603686666,2.27761,3767.9,3767.8,0.9584]
[1753603687173,0.53056,3768.3,3768.2,0.6966]
[1753603687370,0.83261,3768.6,3768.5,0.4794]
[1753603687565,0.83261,3768.6,3768.5,0.9584]
[1753603687768,3.2078,3768.7,3768.5,0.4794]
[1753603687967,0.3021,3769.1,3769.0,0.798]
[1753603688177,0.23162197,3769.1,3769.0,0.9584]
[1753603688373,0.3021,3769.1,3769.0,0.4794]
[1753603688978,0.3021,3769.1,3769.0,0.9584]
[1753603689772,0.3165,3769.2,3769.1,1.00984]
[1753603689977,0.3021,3769.2,3769.1,1.48884]
[1753603690176,0.3021,3769.2,3769.1,4.69664]
[1753603690875,0.3021,3769.2,3769.1,4.1662]
[1753603691274,0.3021,3769.2,3769.1,4.69664]
[1753603691470,0.53035,3769.8,3769.7,0.479]
[1753603691669,0.73033,3769.9,3769.8,0.9584]
[1753603691866,1.66053,3769.9,3769.8,0.9584]
[1753603692065,1.747,3769.6,3769.2,0.2172]
[1753603692271,2.27741,3769.3,3769.2,0.2454]
[1753603692775,2.27741,3769.3,3769.2,0.4058]
[1753603692976,2.27741,3769.3,3769.2,0.6057]
[1753603700176,2.27741,3769.3,3769.2,0.2454]
[1753603700382,2.27745,3769.0,3768.9,0.6966]
[1753603700986,2.27745,3769.0,3768.9,0.9584]
[1753603701186,2.27745,3769.0,3768.9,0.2454]
[1753603701485,2.27745,3769.0,3768.9,0.6966]
[1753603704580,1.23302,3768.5,3768.4,0.349]
[1753603704798,2.27752,3768.5,3768.4,0.349]
[1753603704991,2.27752,3768.5,3768.4,0.5489]
[1753603705287,2.27752,3768.5,3768.4,0.6966]
[1753603706883,3.2078,3768.7,3767.9,6.33289141]
[1753603706884,0.8064,3768.0,3767.9,6.33289141]
[1753603707084,0.3021,3768.0,3767.9,6.86350141]
[1753603707285,0.83269,3768.0,3767.9,6.33289141]
[1753603707493,1.78589,3768.0,3767.9,6.55259141]
[1753603707893,1.78589,3768.0,3767.9,7.08320141]
[1753603708192,1.78589,3768.0,3767.9,6.55259141]
[1753603708584,1.78589,3768.0,3767.9,7.08320141]
[1753603708793,1.78589,3768.0,3767.9,6.55259141]
[1753603709296,1.78589,3768.0,3767.9,7.08320141]
[1753603709590,1.2553,3768.0,3767.9,7.08320141]
[1753603709790,0.8173,3768.0,3767.9,7.08320141]
[1753603709993,0.3021,3768.0,3767.9,7.08320141]
[1753603710193,0.302,3768.4,3768.3,1.22875]
[1753603710381,0.53053,3768.5,3768.4,0.6982]
[1753603710593,0.53053,3768.5,3768.4,0.9595]
[1753603710785,0.83253,3768.5,3768.4,0.9595]
[1753603710988,1.0576,3768.5,3768.4,1.49004]
[1753603711287,0.302,3768.5,3768.4,1.49004]
[1753603711494,3.2078,3769.2,3768.4,1.49004]
[1753603711495,0.302,3768.9,3768.8,1.48997]
[1753603711690,0.83247,3768.9,3768.8,1.48997]
[1753603711889,1.79217,3768.9,3768.8,1.48997]
[1753603712195,1.5609,3768.9,3768.8,1.48997]
[1753603712691,0.6196,3768.9,3768.8,1.48997]
[1753603712894,0.302,3768.9,3768.8,1.48997]
[1753603713094,0.6196,3768.9,3768.8,1.48997]
[1753603713296,1.5609,3768.9,3768.8,1.48997]
[1753603714196,1.7556,3768.9,3768.8,1.48997]
[1753603714491,1.7556,3768.9,3768.8,0.53047]
[1753603714690,0.6196,3768.9,3768.8,1.48997]
[1753603714889,0.302,3768.9,3768.8,4.69777]
[1753603715091,0.6196,3768.9,3768.8,4.69777]
[1753603715296,1.2617,3768.9,3768.8,4.69777]
[1753603715597,1.7556,3768.9,3768.8,4.69777]
[1753603716499,2.28608,3768.8,3768.7,2.62167583]
[1753603716695,2.28608,3768.8,3768.7,0.248]
[1753603716995,2.28608,3768.8,3768.7,0.4109]
[1753603717393,1.7556,3768.8,3768.7,3.60237583]
[1753603717597,1.7556,3768.8,3768.7,1.49]
[1753603718998,2.28608,3768.8,3768.7,1.49]
[1753603719198,2.28608,3768.8,3768.7,0.6982]
[1753603720103,2.28608,3768.8,3768.7,0.6083]
[1753603721002,2.28608,3768.8,3768.7,0.6982]
[1753603721500,1.15008,3768.8,3768.7,1.49]
[1753603722006,0.302,3768.8,3768.7,1.49]
[1753603722307,0.302,3769.1,3769.0,1.48995]
[1753603722602,0.302,3769.1,3769.0,4.69775]
[1753603722806,0.6196,3769.1,3769.0,25.89175]
[1753603724105,0.6196,3769.1,3769.0,28.27676987]
[1753603724299,1.5609,3769.1,3769.0,25.89175]
[1753603724999,1.7556,3769.1,3769.0,25.89175]
[1753603728407,0.302,3769.1,3769.0,25.89175]
[1753603728598,0.9597,3769.4,3769.3,0.81171]
[1753603728907,1.6536,3769.9,3769.8,1.00904]
[1753603729208,1.9556,3769.9,3769.8,22.67164]
[1753603730207,1.9556,3769.9,3769.8,22.41044]
[1753603730409,2.48593,3769.9,3769.8,22.41044]
[1753603731005,1.9556,3769.9,3769.8,22.41044]
[1753603731200,2.48593,3769.9,3769.8,22.41044]
[1753603731506,1.9556,3769.9,3769.8,22.41044]
[1753603732109,1.9556,3769.9,3769.8,22.67164]
[1753603732403,0.698,3770.7,3770.6,0.4787]
[1753603732601,1.4536,3770.7,3770.6,22.70753]
[1753603733410,1.0548,3770.9,3770.8,1.5205]
[1753603733906,1.4536,3770.9,3770.8,1.5205]
[1753603734104,1.4536,3770.9,3770.8,22.1773]
[1753603734309,1.7556,3770.9,3770.8,22.7075]
[1753603734908,2.28579,3770.9,3770.8,22.7075]
[1753603735109,2.28579,3770.9,3770.8,22.1773]
[1753603736407,2.28579,3770.9,3770.8,22.0218]
[1753603737111,2.28581,3770.7,3770.6,0.5479]
[1753603737303,1.7556,3770.7,3770.6,22.26113]
[1753603737497,1.7556,3770.7,3770.6,21.7309]
[1753603737902,1.7556,3770.7,3770.6,22.70683]
[1753603738102,1.7556,3770.7,3770.6,22.69103]
[1753603739108,2.28581,3770.7,3770.6,22.69103]
[1753603739506,2.28581,3770.7,3770.6,22.1608]
[1753603740311,2.28581,3770.7,3770.6,21.9125]
[1753603740507,2.28581,3770.7,3770.6,21.8705]
[1753603740707,2.28581,3770.7,3770.6,21.7151]
[1753603741003,1.7556,3770.7,3770.5,3.2078]
[1753603741203,2.30838,3770.2,3770.1,0.2852]
[1753603741403,2.30838,3770.2,3770.1,21.4622]
[1753603741609,2.30838,3770.2,3770.1,21.7209]
[1753603741810,2.30838,3770.2,3770.1,22.0902]
[1753603742312,1.0449,3770.1,3770.0,3.2078]
[1753603742514,2.3084,3770.1,3770.0,24.3848]
[1753603743114,1.24614,3769.8,3769.7,0.3403]
[1753603743309,2.30844,3769.8,3769.7,21.7209]
[1753603743808,1.7781,3769.8,3769.7,22.70876]
[1753603744606,1.24608,3770.2,3770.1,1.0014]
[1753603744805,1.24608,3770.2,3770.1,22.1784]
[1753603745107,2.30838,3770.2,3770.1,22.1784]
[1753603745298,0.2043,3770.5,3770.4,0.53026]
[1753603745502,1.7781,3770.5,3770.4,22.70866]
[1753603746005,2.30834,3770.5,3770.4,22.1784]
[1753603746207,0.7158,3770.3,3770.2,0.2036]
[1753603746406,1.7781,3770.3,3770.2,22.25018]
[1753603746607,1.7781,3770.3,3770.2,1.53168]
[1753603746906,1.7781,3770.3,3770.2,22.70768]
[1753603747906,1.0282,3770.8,3770.7,1.03251]
[1753603748115,1.0282,3770.8,3770.7,25.91541]
[1753603748116,1.7781,3770.8,3770.7,25.91541]
[1753603749912,0.2873,3771.1,3770.7,24.8861]
[1753603750214,1.4657,3771.0,3770.9,1.24639]
[1753603750412,1.4657,3771.0,3770.9,1.53159]
[1753603750812,1.7781,3771.0,3770.9,1.53159]
[1753603751206,0.3124,3771.0,3770.9,1.53159]
[1753603751407,1.0853,3771.2,3771.1,1.53156]
[1753603751607,1.7781,3771.2,3771.1,25.91336]
[1753603755715,0.018,3771.3,3771.2,1.53154]
[1753603756317,1.2031,3771.9,3771.8,1.03236]
[1753603756515,1.2031,3771.9,3771.8,22.70246]
[1753603756716,1.73315,3771.9,3771.8,22.70246]
[1753603757019,2.50815,3771.9,3771.8,22.54366]
[1753603757620,1.9781,3771.9,3771.8,22.54366]
[1753603758017,2.50815,3771.9,3771.8,22.54366]
[1753603758513,1.9781,3771.9,3771.8,22.54366]
[1753603758713,2.50815,3771.9,3771.8,22.54366]
[1753603759219,2.50815,3771.9,3771.8,21.9254]
[1753603759518,2.50815,3771.9,3771.8,21.3746]
[1753603760317,1.9781,3771.9,3771.8,21.90466]
[1753603761320,2.50815,3771.9,3771.8,21.3746]
[1753603761520,1.9781,3771.9,3771.8,21.90466]
[1753603762014,2.50815,3771.9,3771.8,0.2036]
[1753603762419,1.9781,3771.9,3771.8,21.3686]
[1753603762620,2.50815,3771.9,3771.8,21.3686]
[1753603763010,1.04467,3771.7,3771.6,3.2078]
[1753603763218,2.30817,3771.7,3771.6,24.3728]
[1753603764719,2.30817,3771.7,3771.6,24.5764]
[1753603764913,2.30817,3771.7,3771.6,24.9167]
[1753603765925,2.30817,3771.7,3771.6,25.0755]
[1753603767930,2.30817,3771.7,3771.6,24.9167]
[1753603769022,2.30817,3771.7,3771.6,24.8616]
[1753603769221,2.30817,3771.7,3771.6,24.5764]
[1753603769621,2.30817,3771.7,3771.6,24.9417]
[1753603769822,2.30817,3771.7,3771.6,25.0897]
[1753603770420,0.2,3771.9,3771.8,0.53006]
[1753603770634,0.5121,3771.9,3771.8,22.69156]
[1753603770826,0.9399,3771.9,3771.8,22.69156]
[1753603773026,1.222,3771.9,3771.8,22.69156]
[1753603773227,1.9179,3771.9,3771.8,22.69156]
[1753603774026,2.44795,3771.9,3771.8,22.69156]
[1753603774727,2.44795,3771.9,3771.8,22.1615]
[1753603774928,2.44795,3771.9,3771.8,22.69156]
[1753603775226,1.9179,3771.9,3771.8,22.69156]
[1753603775629,1.6358,3771.9,3771.8,22.69156]
[1753603775930,2.44795,3771.9,3771.8,22.69156]
[1753603776123,1.9179,3771.9,3771.8,22.69156]
[1753603776427,2.44795,3771.9,3771.8,22.69156]
[1753603776930,2.44795,3771.9,3771.8,21.9241]
[1753603777225,2.44795,3771.9,3771.8,22.45416]
[1753603777928,2.44795,3771.9,3771.8,21.9241]
[1753603778228,1.7179,3771.7,3771.6,3.9699]
[1753603778423,1.7179,3771.7,3771.6,25.89639]